bitfinex/quotes_SOLUSD_20250204
["timestamp","ask_amount","ask_price","bid_price","bid_amount"]
[1738678022363,68.87002589,210.76,210.75,0.03]
[1738678022552,13.91380853,210.75,210.74,0.063]
[1738678023368,18.65870853,210.75,210.74,0.063]
[1738678023550,42.30992671,210.75,210.74,0.063]
[1738678024348,42.30992671,210.75,210.7,0.03]
[1738678024349,37.56502671,210.71,210.7,0.03]
[1738678024864,13.91380853,210.67,210.55,4.7494]
[1738678025063,23.65121818,210.61,210.55,4.7494]
[1738678025264,13.41184853,210.62,210.55,4.7494]
[1738678025471,13.41184853,210.62,210.56,23.65121818]
[1738678025672,13.41184853,210.62,210.55,4.7494]
[1738678026880,0.12549,210.64,210.57,4.749]
[1738678027444,37.06306671,210.65,210.57,4.749]
[1738678027661,13.41184853,210.65,210.58,23.65121818]
[1738678027864,23.65121818,210.67,210.6,23.65121818]
[1738678028064,23.65121818,210.73,210.65,23.65121818]
[1738678028288,27.57121818,210.74,210.67,23.65121818]
[1738678028447,13.41184853,210.68,210.62,23.65121818]
[1738678028979,4.7454,210.73,210.6,11.8705]
[1738678029282,0.12549,210.7,210.6,11.8705]
[1738678029442,3.92,210.74,210.57,21.71208307]
[1738678029443,4.7451,210.74,210.64,20.0]
[1738678029648,4.7451,210.74,210.61,16.6183]
[1738678029861,23.65121818,210.7,210.64,20.0]
[1738678030077,23.77670818,210.73,210.65,23.65121818]
[1738678030588,23.65121818,210.77,210.7,23.65121818]
[1738678030780,3.92,210.8,210.75,23.65121818]
[1738678031078,3.92,210.8,210.67,6.1667]
[1738678031079,3.92,210.8,210.76,23.65121818]
[1738678031478,23.65121818,210.85,210.78,23.65121818]
[1738678031779,23.65121818,210.85,210.77,23.65121818]
[1738678031977,4.7422,210.88,210.79,23.65121818]
[1738678032280,23.65121818,210.89,210.82,23.65121818]
[1738678032457,134.8,210.94,210.83,23.65121818]
[1738678032458,23.65121818,210.91,210.83,23.65121818]
[1738678032861,0.12549,210.89,210.83,23.65121818]
[1738678033179,0.25098,210.9,210.83,23.65121818]
[1738678033387,0.12549,210.84,210.77,23.65121818]
[1738678033679,23.65121818,210.82,210.75,34.98761818]
[1738678033897,134.8,210.89,210.81,23.65121818]
[1738678034176,13.41184853,210.84,210.77,23.65121818]
[1738678034972,13.41184853,210.84,210.79,23.65121818]
[1738678035364,23.65121818,210.89,210.81,23.65121818]
[1738678035574,23.65121818,210.93,210.85,23.65121818]
[1738678035768,23.65121818,210.91,210.83,23.65121818]
[1738678035971,13.41184853,210.87,210.81,23.65121818]
[1738678036171,13.41184853,210.87,210.79,23.65121818]
[1738678036686,0.03,210.89,210.83,38.56044999]
[1738678037458,13.41184853,210.88,210.82,38.56044999]
[1738678038185,38.68593999,210.87,210.8,38.56044999]
[1738678038368,13.41184853,210.86,210.78,38.56044999]
[1738678038565,13.41184853,210.82,210.75,6.6545]
[1738678039091,38.56044999,210.91,210.8,43.30414999]
[1738678039269,4.7412,210.92,210.86,38.56044999]
[1738678039694,18.15314853,210.91,210.86,38.56044999]
[1738678039880,0.12549,210.9,210.84,38.56044999]
[1738678040076,13.41184853,210.88,210.82,38.56044999]
[1738678040279,0.03,210.89,210.87,38.56044999]
[1738678040478,0.03,210.89,210.88,38.56044999]
[1738678041167,0.03,210.89,210.88,43.42793999]
[1738678041370,43.29874999,211.05,210.91,20.0]
[1738678041666,0.03,211.07,211.02,38.56044999]
[1738678041864,0.03,211.07,210.92,2.2128433]
[1738678041865,0.03,211.07,211.0,38.56044999]
[1738678042293,0.03,211.07,210.96,38.56044999]
[1738678042294,0.25098,211.03,210.96,38.56044999]
[1738678042490,13.41184853,210.99,210.92,38.56044999]
[1738678043382,18.15154853,210.99,210.92,38.56044999]
[1738678043898,13.41184853,210.99,210.92,38.56044999]
[1738678044309,0.37647,211.04,210.87,45.08714999]
[1738678044310,38.56044999,211.02,210.94,38.56044999]
[1738678044481,38.59044999,211.07,211.01,38.56044999]
[1738678044681,43.32834999,211.07,210.99,38.56044999]
[1738678044879,43.32834999,211.07,210.95,38.56044999]
[1738678044880,13.41184853,211.02,210.95,38.56044999]
[1738678045079,13.41184853,211.0,210.93,38.56044999]
[1738678045295,0.12549,210.99,210.93,38.56044999]
[1738678045495,18.15154853,210.98,210.91,38.56044999]
[1738678045691,13.41184853,210.98,210.91,38.56044999]
[1738678046185,13.41184853,210.98,210.93,38.56044999]
[1738678047084,43.29964999,211.01,210.93,38.56044999]
[1738678047474,13.41184853,211.0,210.93,38.56044999]
[1738678047674,13.41184853,211.0,210.95,38.56044999]
[1738678047874,0.12549,210.99,210.93,38.56044999]
[1738678048100,13.41184853,210.98,210.91,38.56044999]
[1738678049602,13.53733853,211.0,210.91,43.30164999]
[1738678049774,38.56044999,210.99,210.91,38.56044999]
[1738678049983,38.56044999,210.97,210.88,38.56044999]
[1738678050175,13.41184853,210.96,210.88,38.56044999]
[1738678050503,13.41184853,210.92,210.86,38.56044999]
[1738678051106,13.41184853,210.9,210.84,38.56044999]
[1738678051483,13.41184853,210.88,210.8,38.56044999]
[1738678051801,13.41184853,210.86,210.8,38.56044999]
[1738678053283,0.12549,210.83,210.8,38.56044999]
[1738678053486,13.41184853,210.84,210.78,38.56044999]
[1738678053878,38.68593999,210.87,210.8,38.56044999]
[1738678054311,13.41184853,210.86,210.8,38.56044999]
[1738678054511,134.8,210.93,210.84,38.56044999]
[1738678054682,4.7402,210.96,210.89,38.56044999]
[1738678055186,38.56044999,210.97,210.89,38.56044999]
[1738678055386,4.7399,210.98,210.91,38.56044999]
[1738678055707,38.56044999,210.97,210.91,38.56044999]
[1738678056212,13.41184853,210.96,210.89,38.56044999]
[1738678057404,13.91380853,210.98,210.91,38.56044999]
[1738678057708,38.56044999,210.97,210.91,38.56044999]
[1738678057892,13.41184853,210.94,210.88,38.56044999]
[1738678058288,13.41184853,210.94,210.9,38.56044999]
[1738678058509,0.12549,210.97,210.91,38.56044999]
[1738678058712,3.92,210.99,210.92,38.56044999]
[1738678058883,8.6596,210.99,210.92,38.56044999]
[1738678059212,13.91380853,210.98,210.92,38.56044999]
[1738678059709,4.7395,210.99,210.92,38.56044999]
[1738678059891,38.56044999,211.0,210.93,38.56044999]
[1738678060097,0.12549,211.01,210.93,38.56044999]
[1738678060606,4.7383,211.05,210.98,38.56044999]
[1738678060811,38.56044999,211.04,210.98,38.56044999]
[1738678061016,13.53733853,211.03,210.96,38.56044999]
[1738678061591,18.27603853,211.03,210.96,38.56044999]
[1738678061997,13.41184853,211.04,210.98,38.56044999]
[1738678062201,18.15024853,211.04,210.98,38.56044999]
[1738678062425,39.06240999,211.03,210.96,38.56044999]
[1738678062630,38.56044999,211.03,210.96,38.56044999]
[1738678064323,13.41184853,211.02,210.96,38.56044999]
[1738678064629,13.41184853,210.96,210.88,23.71412149]
[1738678064922,43.71412149,210.97,210.9,23.71412149]
[1738678065627,13.41184853,210.96,210.9,23.71412149]
[1738678066411,18.15204853,210.96,210.9,23.71412149]
[1738678066625,18.15204853,210.96,210.88,4.7418]
[1738678066626,18.15204853,210.96,210.89,38.53136536]
[1738678067422,13.41184853,210.96,210.89,43.27306536]
[1738678067598,43.39655536,210.99,210.91,38.53136536]
[1738678068124,13.41184853,210.98,210.91,38.53136536]
[1738678068316,43.27066536,211.01,210.89,4.7417]
[1738678068500,38.53136536,211.03,210.95,38.53136536]
[1738678068699,38.53136536,211.01,210.93,38.53136536]
[1738678068911,38.53136536,210.99,210.91,38.53136536]
[1738678069122,13.41184853,210.98,210.91,38.53136536]
[1738678069319,13.41184853,210.98,210.93,38.53136536]
[1738678070031,38.90783536,211.03,210.95,38.53136536]
[1738678070202,43.27016536,211.03,210.95,38.53136536]
[1738678070599,13.41184853,211.02,210.95,38.53136536]
[1738678071212,4.7391,211.01,210.95,38.53136536]
[1738678071629,52.06870389,211.0,210.92,38.53136536]
[1738678072218,0.12549,210.96,210.9,38.53136536]
[1738678072524,13.41184853,210.95,210.88,38.53136536]
[1738678072728,13.41184853,210.95,210.89,0.063]
[1738678073232,57.18667389,210.9,210.89,0.063]
[1738678073813,4.7411,210.92,210.89,0.063]
[1738678074127,13.41184853,210.92,210.89,0.063]
[1738678074318,3.92,210.96,210.91,38.53136536]
[1738678074508,8.6602,210.96,210.9,38.53136536]
[1738678074706,13.41184853,210.95,210.89,38.59436536]
[1738678075724,13.41184853,210.95,210.89,43.33606536]
[1738678075896,13.41184853,210.95,210.89,38.59436536]
[1738678076102,18.15224853,210.95,210.89,0.063]
[1738678076305,18.15224853,210.95,210.89,38.59436536]
[1738678076531,39.03332536,210.94,210.89,0.063]
[1738678076705,38.53136536,210.91,210.89,0.063]
[1738678076920,13.41184853,210.9,210.89,0.063]
[1738678077430,18.15334853,210.9,210.89,0.063]
[1738678078432,18.65530853,210.9,210.89,0.063]
[1738678079026,13.53733853,210.86,210.77,38.53136536]
[1738678079328,38.53136536,210.83,210.76,38.53136536]
[1738678079526,13.41184853,210.81,210.75,0.063]
[1738678079735,13.41184853,210.8,210.75,0.063]
[1738678080230,13.41184853,210.81,210.75,38.59436536]
[1738678080697,13.41184853,210.81,210.75,0.063]
[1738678081539,18.15544853,210.81,210.75,0.063]
[1738678081745,13.41184853,210.79,210.75,0.063]
[1738678082322,13.41184853,210.77,210.75,0.063]
[1738678082951,134.92549,210.8,210.75,0.063]
[1738678083620,134.8,210.8,210.75,0.063]
[1738678084226,13.53733853,210.77,210.75,0.063]
[1738678084437,52.44517389,210.76,210.75,0.063]
[1738678084644,191.98987389,210.76,210.75,0.063]
[1738678085144,57.18987389,210.76,210.75,0.063]
[1738678086622,42.41574559,210.76,210.75,0.063]
[1738678090639,20.37647,210.72,210.67,0.063]
[1738678090828,0.12549,210.68,210.67,0.063]
[1738678091051,23.88272706,210.68,210.67,0.063]
[1738678091250,0.12549,210.68,210.67,0.063]
[1738678091966,0.25098,210.68,210.67,0.063]
[1738678092345,4.99748,210.68,210.67,0.063]
[1738678093061,0.25098,210.68,210.67,0.063]
[1738678093741,4.99748,210.68,210.67,0.063]
[1738678094675,0.25098,210.68,210.67,0.063]
[1738678094851,4.99678,210.72,210.67,0.063]
[1738678095172,3.92,210.73,210.68,23.75723706]
[1738678095668,134.8,210.75,210.7,23.75723706]
[1738678095858,4.7442,210.79,210.73,23.75723706]
[1738678096067,20.0,210.78,210.72,23.75723706]
[1738678096267,0.12549,210.77,210.71,23.75723706]
[1738678096446,20.0,210.78,210.73,23.75723706]
[1738678096781,13.53733853,210.79,210.73,23.75723706]
[1738678096957,0.12549,210.79,210.73,23.75723706]
[1738678097153,13.41184853,210.8,210.73,23.75723706]
[1738678097368,41.91298559,210.8,210.73,23.75723706]
[1738678097568,13.41184853,210.78,210.72,23.82023706]
[1738678098248,13.41184853,210.79,210.72,28.56573706]
[1738678098439,28.75171706,210.82,210.75,23.75723706]
[1738678098640,139.5422,210.87,210.8,23.75723706]
[1738678098873,43.75723706,210.86,210.78,23.75723706]
[1738678099055,37.16908559,210.83,210.76,23.75723706]
[1738678099376,0.25098,210.8,210.74,23.75723706]
[1738678100275,13.41184853,210.81,210.74,23.75723706]
[1738678100468,13.41184853,210.81,210.74,28.50233706]
[1738678100647,0.25098,210.8,210.74,23.75723706]
[1738678100849,13.41184853,210.77,210.72,0.063]
[1738678101158,13.41184853,210.75,210.72,0.063]
[1738678101757,28.50143706,210.79,210.72,0.063]
[1738678101956,4.7442,210.79,210.72,23.82023706]
[1738678102284,134.8,210.8,210.74,23.75723706]
[1738678102455,13.41184853,210.79,210.73,23.75723706]
[1738678102656,13.41184853,210.76,210.72,0.063]
[1738678102981,23.75723706,210.75,210.72,0.063]
[1738678103194,0.25098,210.73,210.72,0.063]
[1738678103489,28.75361706,210.73,210.72,0.063]
[1738678103701,42.41644559,210.73,210.72,0.063]
[1738678108572,0.50196,210.68,210.67,0.063]
[1738678108775,37.67104559,210.68,210.67,0.063]
[1738678109781,42.41754559,210.68,210.67,0.063]
[1738678111611,42.16656559,210.68,210.67,0.063]
[1738678111930,13.41184853,210.68,210.67,0.063]
[1738678113816,18.66030853,210.68,210.67,0.063]
[1738678118340,13.66282853,210.63,210.57,6.0087]
[1738678118520,28.50503706,210.62,210.57,6.0087]
[1738678118718,37.42006559,210.61,210.54,4.7496]
[1738678119038,13.41184853,210.59,210.53,4.7797]
[1738678119436,13.41184853,210.59,210.57,0.063]
[1738678119739,13.41184853,210.6,210.57,0.063]
[1738678120720,4.7483,210.61,210.57,0.063]
[1738678121131,13.41184853,210.6,210.57,0.063]
[1738678122632,23.75723706,210.68,210.59,23.75723706]
[1738678122836,4.7463,210.69,210.62,23.75723706]
[1738678123515,13.41184853,210.66,210.62,23.75723706]
[1738678123716,4.87189,210.69,210.63,23.75723706]
[1738678124015,13.41184853,210.68,210.63,23.75723706]
[1738678125033,13.41184853,210.68,210.64,23.75723706]
[1738678125341,13.41184853,210.68,210.63,23.75723706]
[1738678125523,0.12549,210.67,210.63,23.75723706]
[1738678125710,18.15814853,210.69,210.63,23.75723706]
[1738678125910,18.15814853,210.69,210.64,23.75723706]
[1738678126111,0.25098,210.68,210.63,23.75723706]
[1738678126519,0.25098,210.68,210.62,28.50503706]
[1738678126723,0.25098,210.66,210.62,23.75723706]
[1738678126914,13.66282853,210.66,210.6,23.75723706]
[1738678127838,18.40982853,210.66,210.6,23.75723706]
[1738678130047,0.25098,210.64,210.58,23.75723706]
[1738678130345,13.66282853,210.65,210.57,0.063]
[1738678130346,13.66282853,210.6,210.57,0.063]
[1738678130644,13.91380853,210.58,210.57,0.063]
[1738678132146,20.0,210.58,210.57,0.063]
[1738678132518,158.55723706,210.62,210.57,0.063]
[1738678132737,3.92,210.63,210.58,23.75723706]
[1738678132935,4.7471,210.66,210.6,23.75723706]
[1738678133229,23.75723706,210.68,210.61,23.75723706]
[1738678133434,28.50323706,210.71,210.63,23.75723706]
[1738678133916,20.0,210.68,210.63,23.75723706]
[1738678134740,13.66282853,210.67,210.62,23.75723706]
[1738678135243,13.41184853,210.65,210.59,23.75723706]
[1738678135437,13.41184853,210.64,210.58,4.7487]
[1738678135640,13.41184853,210.64,210.58,28.50593706]
[1738678136033,13.66282853,210.65,210.6,23.75723706]
[1738678136538,23.75723706,210.67,210.6,23.75723706]
[1738678136735,23.88272706,210.68,210.61,23.75723706]
[1738678136941,13.66282853,210.67,210.62,23.75723706]
[1738678137832,13.66282853,210.67,210.57,5.52409698]
[1738678137833,23.75723706,210.71,210.64,23.75723706]
[1738678138038,28.50303706,210.71,210.64,23.75723706]
[1738678138348,13.66282853,210.7,210.63,23.75723706]
[1738678138528,37.42006559,210.7,210.63,23.75723706]
[1738678138923,13.66282853,210.68,210.61,23.75723706]
[1738678139327,23.75723706,210.66,210.59,28.50563706]
[1738678139547,37.42006559,210.68,210.6,23.75723706]
[1738678139744,13.41184853,210.67,210.62,23.75723706]
[1738678140126,0.25098,210.68,210.63,23.75723706]
[1738678140325,0.25098,210.71,210.65,23.75723706]
[1738678140552,28.75401706,210.71,210.64,23.75723706]
[1738678140752,13.66282853,210.7,210.61,4.7479]
[1738678140955,37.42006559,210.7,210.63,23.75723706]
[1738678141140,13.66282853,210.7,210.64,23.75723706]
[1738678141632,13.66282853,210.7,210.64,28.50463706]
[1738678142157,37.42006559,210.7,210.63,23.75723706]
[1738678142325,0.03,210.72,210.66,23.75723706]
[1738678142527,0.03,210.72,210.71,23.75723706]
[1738678143425,0.03,210.72,210.71,28.50303706]
[1738678144136,0.03,210.72,210.68,28.50373706]
[1738678144353,23.75723706,210.7,210.64,6.1656]
[1738678144534,23.75723706,210.69,210.62,28.50483706]
[1738678144742,23.75723706,210.69,210.62,4.7476]
[1738678144951,13.69282853,210.72,210.6,1.5001]
[1738678144952,148.49282853,210.72,210.6,1.5001]
[1738678145265,13.91380853,210.71,210.59,11.3567]
[1738678145467,0.25098,210.68,210.59,11.3567]
[1738678145633,4.99758,210.68,210.62,0.063]
[1738678146136,13.41184853,210.66,210.62,0.063]
[1738678147054,13.41184853,210.67,210.62,0.063]
[1738678147758,23.78723706,210.69,210.62,0.063]
[1738678147928,0.03,210.69,210.64,23.75723706]
[1738678148133,13.94380853,210.69,210.62,23.82023706]
[1738678148377,0.25098,210.67,210.62,0.063]
[1738678148544,13.53733853,210.66,210.62,0.063]
[1738678148739,0.25098,210.63,210.62,0.063]
[1738678148933,24.00821706,210.63,210.62,0.063]
[1738678149136,0.25098,210.63,210.62,0.063]
[1738678150058,24.00821706,210.63,210.62,0.063]
[1738678150565,28.75581706,210.63,210.62,0.063]
[1738678151037,42.41864559,210.63,210.62,0.063]
[1738678154160,20.50196,210.59,210.57,0.063]
[1738678154363,37.67104559,210.54,210.53,0.03]
[1738678155050,0.12549,210.54,210.53,0.03]
[1738678156765,13.41184853,210.55,210.53,0.03]
[1738678157971,134.8,210.57,210.53,23.78723706]
[1738678158286,4.7478,210.62,210.55,23.75723706]
[1738678158492,13.91380853,210.61,210.55,23.75723706]
[1738678159794,23.75723706,210.64,210.57,23.75723706]
[1738678160101,28.50413706,210.66,210.59,23.75723706]
[1738678160269,13.53733853,210.62,210.57,23.75723706]
[1738678160475,0.12549,210.6,210.55,23.75723706]
[1738678160783,0.12549,210.6,210.53,23.78723706]
[1738678161371,13.41184853,210.58,210.53,23.78723706]
[1738678161794,18.28563853,210.6,210.55,23.75723706]
[1738678162803,18.28563853,210.6,210.53,23.78723706]
[1738678163379,18.28563853,210.6,210.55,23.75723706]
[1738678164014,42.04287559,210.6,210.53,23.78723706]
[1738678164383,0.12549,210.56,210.53,0.03]
[1738678164878,37.29457559,210.56,210.53,0.03]
[1738678165106,13.91380853,210.54,210.53,0.03]
[1738678165608,18.66340853,210.54,210.53,0.03]
[1738678165924,42.42064559,210.54,210.53,0.03]
[1738678166776,18.66340853,210.54,210.53,0.03]
[1738678167608,13.41184853,210.54,210.53,0.03]
[1738678167801,4.7494,210.56,210.53,0.03]
[1738678168116,23.75723706,210.6,210.54,23.75723706]
[1738678168284,23.75723706,210.63,210.55,23.75723706]
[1738678168691,13.41184853,210.61,210.54,23.75723706]
[1738678169398,0.12549,210.58,210.54,23.75723706]
[1738678169597,0.12549,210.58,210.53,0.03]
[1738678170514,13.41184853,210.59,210.54,23.75723706]
[1738678170810,134.8,210.61,210.54,23.75723706]
[1738678171176,4.7478,210.63,210.56,23.75723706]
[1738678171382,4.7473,210.65,210.58,23.75723706]
[1738678171608,13.41184853,210.64,210.58,23.75723706]
[1738678171780,37.16908559,210.64,210.56,23.75723706]
[1738678171982,0.03,210.6,210.56,23.75723706]
[1738678174092,0.50196,210.58,210.53,0.03]
[1738678174300,23.88272706,210.58,210.53,0.03]
[1738678174820,13.53733853,210.58,210.53,0.03]
[1738678175309,13.41184853,210.57,210.53,0.03]
[1738678176112,18.16104853,210.57,210.53,0.03]
[1738678176704,44.25919706,210.54,210.53,0.03]
[1738678177006,57.67104559,210.54,210.53,0.03]
[1738678177908,61.92064559,210.54,210.53,0.03]
[1738678178792,38.16340853,210.54,210.53,0.03]
[1738678179898,13.41184853,210.54,210.53,0.03]
[1738678181186,4.7494,210.55,210.53,0.03]
[1738678181407,28.50643706,210.56,210.53,0.03]
[1738678183299,18.66330853,210.55,210.53,0.03]
[1738678183487,18.16330853,210.55,210.53,0.03]
[1738678184112,24.25919706,210.54,210.53,0.03]
[1738678185504,42.42064559,210.54,210.53,0.03]
[1738678185704,18.28693853,210.54,210.53,0.03]
[1738678186451,18.16144853,210.54,210.53,0.03]
[1738678186743,13.41184853,210.54,210.53,0.03]
[1738678187813,13.44603973,210.7,210.53,0.03]
[1738678187814,4.7479,210.62,210.53,0.03]
[1738678188020,23.75723706,210.64,210.56,23.75723706]
[1738678188321,4.7783,210.6,210.54,23.75723706]
[1738678188633,13.41184853,210.57,210.53,0.03]
[1738678190049,0.03,210.6,210.56,23.75723706]
[1738678190242,13.44184853,210.6,210.56,23.75723706]
[1738678190543,13.44184853,210.6,210.55,23.75723706]
[1738678191042,13.44184853,210.6,210.54,23.75723706]
[1738678191219,18.19034853,210.6,210.54,23.75723706]
[1738678191422,18.19034853,210.6,210.53,23.78723706]
[1738678192454,0.03,210.6,210.55,23.75723706]
[1738678192833,13.44184853,210.6,210.55,23.75723706]
[1738678193350,18.19014853,210.6,210.53,23.78723706]
[1738678194036,0.03,210.6,210.55,23.75723706]
[1738678194236,0.03,210.6,210.55,28.50653706]
[1738678194434,0.03,210.6,210.57,23.75723706]
[1738678194935,0.03,210.6,210.59,23.75723706]
[1738678195322,0.03,210.6,210.57,23.75723706]
[1738678196119,0.03,210.6,210.55,48.50653706]
[1738678197757,0.03,210.6,210.59,23.75723706]
[1738678198068,0.03,210.6,210.59,32.77549029]
[1738678198227,0.03,210.69,210.62,20.0]
[1738678198428,0.03,210.69,210.68,23.75723706]
[1738678198660,0.03,210.69,210.68,14.84533522]
[1738678199153,0.03,210.69,210.68,21.07863522]
[1738678199355,0.03,210.69,210.68,21.79034828]
[1738678200426,0.03,210.72,210.69,1.0]
[1738678200654,7.27652196,210.78,210.71,20.0]
[1738678200860,14.49304392,210.8,210.79,21.0]
[1738678200861,14.09821933,210.8,210.79,21.0]
[1738678201039,43.47913177,210.87,210.83,1.0]
[1738678201248,7.33016552,210.89,210.81,0.71134466]
[1738678201448,7.33016552,210.89,210.84,23.73556631]
[1738678201654,7.33016552,210.89,210.86,23.73556631]
[1738678201839,13.41184853,210.88,210.83,23.73556631]
[1738678202847,7.33016552,210.89,210.85,23.73556631]
[1738678203051,7.33016552,210.89,210.88,23.73556631]
[1738678203363,7.33016552,210.89,210.87,23.73556631]
[1738678203763,0.03,210.89,210.87,23.73556631]
[1738678203946,0.03,210.89,210.85,23.73556631]
[1738678204148,0.15549,210.89,210.83,23.73556631]
[1738678204645,28.63285631,210.89,210.81,23.73556631]
[1738678204847,28.63285631,210.89,210.82,23.73556631]
[1738678205247,28.63285631,210.89,210.8,23.73556631]
[1738678205455,23.86105631,210.87,210.78,23.73556631]
[1738678206667,0.12549,210.87,210.82,23.73556631]
[1738678206978,0.12549,210.87,210.81,23.73556631]
[1738678207142,13.53733853,210.87,210.81,23.73556631]
[1738678207339,18.27963853,210.87,210.79,23.73556631]
[1738678209371,0.12549,210.85,210.79,23.73556631]
[1738678209960,0.03,210.89,210.83,23.73556631]
[1738678210159,0.03,210.89,210.88,23.73556631]
[1738678211182,0.03,210.89,210.87,23.73556631]
[1738678211391,0.03,210.89,210.85,23.73556631]
[1738678211767,0.03,210.89,210.83,23.73556631]
[1738678212297,24.26752631,210.89,210.83,23.73556631]
[1738678213484,5.27376,210.89,210.84,23.73556631]
[1738678213697,0.03,210.89,210.86,23.73556631]
[1738678213894,0.03,210.89,210.87,23.73556631]
[1738678214073,0.03,210.89,210.86,23.73556631]
[1738678214394,0.03,210.89,210.83,23.73556631]
[1738678214755,0.15549,210.89,210.83,23.73556631]
[1738678215085,13.41184853,210.88,210.84,23.73556631]
[1738678215272,0.15549,210.89,210.79,5.45534521]
[1738678215273,0.03,210.89,210.86,23.73556631]
[1738678215785,0.03,210.89,210.85,23.73556631]
[1738678216082,0.03,210.89,210.88,23.73556631]
[1738678217166,0.03,210.89,210.87,23.73556631]
[1738678217585,0.03,210.89,210.88,23.73556631]
[1738678218152,0.03,210.89,210.88,24.44660566]
[1738678219159,0.03,210.89,210.87,23.73556631]
[1738678219364,0.03,210.89,210.85,23.73556631]
[1738678219792,0.03,210.89,210.88,23.73556631]
[1738678220262,0.03,210.89,210.88,24.44666191]
[1738678220463,0.03,210.89,210.87,23.73556631]
[1738678221266,0.03,210.89,210.85,23.73556631]
[1738678221958,4.7718,210.89,210.85,23.73556631]
[1738678222888,0.03,210.89,210.85,23.73556631]
[1738678223089,24.26752631,210.89,210.81,23.73556631]
[1738678223663,24.23752631,210.87,210.81,23.73556631]
[1738678223891,24.23752631,210.87,210.8,0.063]
[1738678224199,0.50196,210.85,210.8,0.063]
[1738678224377,13.53733853,210.81,210.8,0.063]
[1738678224571,148.71380853,210.81,210.8,0.063]
[1738678224972,18.65740853,210.81,210.8,0.063]
[1738678225175,42.39297484,210.81,210.8,0.063]
[1738678228598,1.5009,210.85,210.8,0.063]
[1738678228893,37.64937484,210.84,210.8,0.063]
[1738678229081,23.86105631,210.81,210.8,0.063]
[1738678229276,37.64937484,210.81,210.8,0.063]
[1738678229478,37.14741484,210.81,210.8,0.063]
[1738678229989,37.64937484,210.81,210.8,0.063]
[1738678230502,0.12549,210.76,210.68,6.4377]
[1738678230674,23.73556631,210.74,210.68,6.4377]
[1738678231008,0.12549,210.74,210.68,6.4377]
[1738678231312,0.12549,210.72,210.64,23.73556631]
[1738678231606,23.86105631,210.7,210.62,23.73556631]
[1738678231780,13.41184853,210.68,210.61,23.73556631]
[1738678231983,13.41184853,210.68,210.61,28.48366631]
[1738678232279,135.30196,210.72,210.59,1.6437]
[1738678232280,13.41184853,210.66,210.59,23.73556631]
[1738678232579,13.41184853,210.66,210.59,28.48406631]
[1738678232780,23.73556631,210.69,210.61,23.73556631]
[1738678232988,37.64937484,210.68,210.6,23.73556631]
[1738678233301,13.41184853,210.65,210.58,30.31716631]
[1738678233507,13.41184853,210.65,210.58,35.06586631]
[1738678233805,13.41184853,210.65,210.6,23.73556631]
[1738678233991,13.41184853,210.65,210.58,30.31716631]
[1738678233992,0.12549,210.64,210.58,30.31716631]
[1738678234173,24.23752631,210.64,210.58,0.063]
[1738678234374,13.41184853,210.59,210.58,0.063]
[1738678235570,23.73556631,210.62,210.58,0.063]
[1738678235781,28.98492631,210.64,210.58,0.063]
[1738678236074,13.41184853,210.6,210.58,0.063]
[1738678239782,23.73556631,210.62,210.58,0.063]
[1738678240121,23.73556631,210.64,210.58,0.063]
[1738678240323,13.41184853,210.63,210.58,0.063]
[1738678240622,13.41184853,210.61,210.58,0.063]
[1738678240802,0.12549,210.6,210.58,0.063]
[1738678240991,33.53733853,210.59,210.58,0.063]
[1738678241191,33.91380853,210.59,210.58,0.063]
[1738678242207,33.41184853,210.59,210.58,0.063]
[1738678242727,38.16034853,210.59,210.58,0.063]
[1738678243395,38.66230853,210.59,210.58,0.063]
[1738678244192,38.16034853,210.59,210.58,0.063]
[1738678245027,23.73556631,210.63,210.58,0.063]
[1738678245183,13.41184853,210.62,210.58,0.063]
[1738678245386,23.73556631,210.66,210.59,23.73556631]
[1738678245621,30.04276631,210.68,210.61,23.73556631]
[1738678245913,37.14741484,210.64,210.58,0.063]
[1738678246341,13.41184853,210.6,210.58,0.063]
[1738678246931,134.8,210.64,210.58,0.063]
[1738678246932,23.73556631,210.63,210.58,0.063]
[1738678247235,13.41184853,210.62,210.58,0.063]
[1738678247431,23.73556631,210.6,210.58,0.063]